[Event "58th Akiba Rubinstein A 2022"]
[Site "Polanica-Zdroj"]
[Date "2022.08.15"]
[Round "3.15"]
[White "Kejna, Piotr"]
[Black "Kazmierowski, Tymon"]
[Result "1-0"]
[ECO "B20"]
[WhiteElo "1970"]
[BlackElo "1961"]
[Annotator "NA RC"]
[PlyCount "73"]
[EventDate "2022.08.13"]
[EventCountry "POL"]
[SourceTitle "playchess.com"]
[Source "ChessBase"]
[SourceQuality "1"]
[TimeControl "40/5400+30:1800+30"]

1. e4 {[%emt 0:00:03]} c5 {[%emt 0:00:11]} 2. b3 {[%emt 0:00:06]} e5 {[%emt 0:01:20]} 3. Bb2 {[%emt 0:00:11]} d6 {[%emt 0:00:33]} 4. Bc4 {[%emt 0:00:38]} Nf6 {[%emt 0:00:54]} 5. d3 {[%emt 0:00:48]} Be7 {[%emt 0:00:36]} 6. Ne2 {[%emt 0:01:53]} O-O {[%emt 0:01:50]} 7. O-O {[%emt 0:01:13]} Nc6 {[%emt 0:07:32]} 8. Nbc3 {[%emt 0:01:22]} Be6 {[%emt 0:07:17]} 9. f4 {[%emt 0:00:37]} Ng4 {[%emt 0:05:03]} 10. Bc1 $11 {[%emt 0:05:46]} Bxc4 {[%emt 0:06:03]} 11. bxc4 {[%emt 0:00:15]} exf4 {[%emt 0:02:23]} 12. Nd5 {[%emt 0:07:26]} Nge5 {[%emt 0:05:26]} 13. Nexf4 {[%emt 0:01:01]} Bg5 {[%emt 0:05:01]} 14. g3 {[%emt 0:07:58]} g6 {[%emt 0:19:59]} 15. h4 {[%emt 0:05:48]} Bxf4 {[%emt 0:08:38]} 16. Bxf4 {[%emt 0:01:05]} f6 {[%emt 0:03:34]} 17. Bh6 {[%emt 0:04:28]} Rf7 {[%emt 0:00:04]} 18. c3 {[%emt 0:02:53]} Nd7 {[%emt 0:03:38]} 19. h5 {[%emt 0:03:00]} Nb6 {[%emt 0:03:30]} 20. Qg4 {[%emt 0:07:05]} Ne5 {[%emt 0:01:11]} 21. Qe6 {[%emt 0:00:57]} Nxd5 {[%emt 0:00:39]} 22. Qxd5 {[%emt 0:02:08]} Qe7 {[%emt 0:00:56]} 23. Rf4 {[%emt 0:06:08]} Re8 {[%emt 0:07:56]} 24. Raf1 {[%emt 0:02:09]} Qe6 {[%emt 0:01:10]} 25. hxg6 {[%emt 0:01:02]} Qxd5 {[%emt 0:00:50]} 26. cxd5 {[%emt 0:01:04]} hxg6 {[%emt 0:00:06]} 27. Rxf6 {[%emt 0:00:39]} Rxf6 {[%emt 0:00:28]} 28. Rxf6 {[%emt 0:00:01]} Kh7 {[%emt 0:00:12]} 29. Bf4 {[%emt 0:01:11]} Nxd3 {[%emt 0:00:11]} 30. Bxd6 {[%emt 0:08:12]} Rxe4 {[%emt 0:00:05]} 31. Rf7+ {[%emt 0:01:24]} Kh6 {[%emt 0:00:17]} 32. Bf8+ {[%emt 0:01:15]} Kg5 {[%emt 0:00:19]} 33. d6 {[%emt 0:01:23]} Ne5 {[%emt 0:00:26]} 34. Re7 {[%emt 0:00:53]} Kf5 {[%emt 0:04:25]} 35. Kf1 {[%emt 0:09:02]} Re3 {[%emt 0:01:12]} 36. Bg7 {[%emt 0:01:21]} Kg4 {[%emt 0:03:06]} 37. Bxe5 {[%emt 0:01:25]} 1-0

[Event "58th Akiba Rubinstein A 2022"]
[Site "Polanica-Zdroj"]
[Date "2022.08.15"]
[Round "3.16"]
[White "Nowak, Filip"]
[Black "Walkusz, Witoslaw"]
[Result "1-0"]
[ECO "C78"]
[WhiteElo "1957"]
[BlackElo "2001"]
[Annotator "NA RC"]
[PlyCount "101"]
[EventDate "2022.08.13"]
[EventCountry "POL"]
[SourceTitle "playchess.com"]
[Source "ChessBase"]
[SourceQuality "1"]
[TimeControl "40/5400+30:1800+30"]

1. e4 {[%emt 0:00:04]} e5 {[%emt 0:00:32]} 2. Nf3 {[%emt 0:00:05]} Nc6 {[%emt 0:00:05]} 3. Bb5 {[%emt 0:00:09]} a6 {[%emt 0:00:20]} 4. Ba4 {[%emt 0:00:05]} Nf6 {[%emt 0:00:12]} 5. O-O {[%emt 0:00:16]} b5 {[%emt 0:00:11]} 6. Bb3 {[%emt 0:00:06]} Bd6 {[%emt 0:01:47]} 7. Re1 {[%emt 0:05:14]} Bb7 {[%emt 0:03:32]} 8. d4 {[%emt 0:10:02]} O-O {[%emt 0:02:44]} 9. c3 {[%emt 0:07:33]} Re8 {[%emt 0:02:46]} 10. Nbd2 {[%emt 0:01:14]} Bf8 {[%emt 0:06:35]} 11. Bc2 {[%emt 0:07:11]} d5 {[%emt 0:09:51]} 12. exd5 {[%emt 0:06:58]} Qxd5 {[%emt 0:02:55]} 13. Bb3 {[%emt 0:21:50]} Qd6 {[%emt 0:02:45]} 14. Ng5 {[%emt 0:06:22]} Nd8 {[%emt 0:04:18]} 15. Ndf3 {[%emt 0:06:45]} exd4 {[%emt 0:22:03]} 16. Rxe8 {[%emt 0:00:22]} Nxe8 {[%emt 0:00:05]} 17. Nxf7 {[%emt 0:08:10]} Nxf7 {[%emt 0:01:44]} 18. Ng5 {[%emt 0:01:19]} Bd5 {[%emt 0:07:22]} 19. Nxf7 {[%emt 0:00:25]} Bxf7 {[%emt 0:03:02]} 20. Bxf7+ {[%emt 0:00:18]} Kxf7 {[%emt 0:01:13]} 21. Qf3+ {[%emt 0:00:14]} Nf6 {[%emt 0:02:10]} 22. Qxa8 {[%emt 0:00:08]} dxc3 {[%emt 0:00:53]} 23. Qf3 {[%emt 0:01:11]} cxb2 {[%emt 0:08:05]} 24. Bxb2 {[%emt 0:00:05]} Qd5 {[%emt 0:00:04]} 25. Qe2 {[%emt 0:04:42]} Qe4 {[%emt 0:05:10]} 26. Qxe4 {[%emt 0:04:05]} Nxe4 {[%emt 0:00:05]} 27. Rd1 {[%emt 0:01:05]} Bd6 {[%emt 0:01:24]} 28. f3 {[%emt 0:00:24]} Nc5 {[%emt 0:00:56]} 29. Ba3 {[%emt 0:01:16]} Ke6 {[%emt 0:01:37]} 30. Bxc5 {[%emt 0:02:16]} Bxc5+ {[%emt 0:00:04]} 31. Kf1 {[%emt 0:00:02]} Bd6 {[%emt 0:00:52]} 32. g3 {[%emt 0:00:45]} c5 {[%emt 0:00:25]} 33. Ke2 {[%emt 0:00:11]} a5 {[%emt 0:01:43]} 34. Ke3 {[%emt 0:01:09]} a4 {[%emt 0:02:06]} 35. f4 {[%emt 0:01:13]} b4 {[%emt 0:03:04]} 36. Ke4 {[%emt 0:01:57]} h5 {[%emt 0:02:29]} 37. f5+ {[%emt 0:00:38]} Kd7 {[%emt 0:00:56]} 38. Kd5 {[%emt 0:00:05]} Be7 {[%emt 0:00:52]} 39. h3 {[%emt 0:01:45]} Kc7 {[%emt 0:00:46]} 40. g4 {[%emt 0:00:00]} hxg4 {[%emt 0:00:00]} 41. hxg4 {[%emt 0:01:15]} Kb6 {[%emt 0:05:27]} 42. Kc4 {[%emt 0:00:38]} Kc6 {[%emt 0:00:43]} 43. Re1 {[%emt 0:00:34]} Bf6 {[%emt 0:04:06]} 44. Re6+ {[%emt 0:01:24]} Kd7 {[%emt 0:00:18]} 45. Ra6 {[%emt 0:00:40]} b3 {[%emt 0:01:48]} 46. axb3 {[%emt 0:00:09]} axb3 {[%emt 0:00:04]} 47. Kxb3 {[%emt 0:00:21]} Ke7 {[%emt 0:00:30]} 48. Kc4 {[%emt 0:00:56]} Bd4 {[%emt 0:00:18]} 49. Kd5 {[%emt 0:00:52]} Kf7 {[%emt 0:00:27]} 50. g5 {[%emt 0:00:48]} g6 {[%emt 0:09:10]} 51. Ra7+ 1-0

[Event "58th Akiba Rubinstein A 2022"]
[Site "Polanica-Zdroj"]
[Date "2022.08.16"]
[Round "4.1"]
[White "Cyborowski, Lukasz"]
[Black "Razin, Vadim"]
[Result "1-0"]
[ECO "A13"]
[WhiteElo "2483"]
[BlackElo "2428"]
[Annotator "TA"]
[PlyCount "69"]
[EventDate "2022.08.13"]
[EventCountry "POL"]
[SourceTitle "playchess.com"]
[Source "ChessBase"]
[SourceQuality "1"]
[TimeControl "40/5400+30:1800+30"]

{[%evp 9,69,57,62,56,95,79,76,22,39,7,63,65,115,116,115,111,168,138,195,174,336,317,321,330,350,347,349,344,480,254,250,247,236,251,237,217,304,304,303,308,320,321,329,332,332,316,296,251,443,458,498,444,848,855,5514,5514,5489,5489,2866,1958,5895,854]} 1. c4 {[%emt 0:00:04]} e6 {[%emt 0:01:26]} 2. Nc3 {[%emt 0:00:29]} d5 {[%emt 0:00:06]} 3. d4 {[%emt 0:00:05]} dxc4 {[%emt 0:00:17]} 4. e4 {[%emt 0:00:04]} a6 {[%emt 0:00:42]} 5. Bxc4 {[%emt 0:00:06]} b5 {[%emt 0:00:34]} 6. Bb3 {[%emt 0:00:37] White is more active. D20: Queen's Gambit Accepted: 3 e3 and 3 e4.} Bb7 {[%emt 0:01:07]} 7. Nf3 {[%emt 0:00:20][%cal Bg1f3,Bf3g5,Bg5e4,Be4g3,Bg3h5,Bh5f4][%mdl 32]} Nf6 {[%emt 0:01:44]} 8. e5 {[%emt 0:00:20]} ({White should try} 8. O-O $16) 8... Nd5 $11 {[%emt 0:00:50] [#]} 9. Ng5 $146 {[%emt 0:00:47] Strongly threatening Qh5.} ({Predecessor:} 9. Nxd5 Bxd5 10. O-O Be7 11. Bxd5 Qxd5 12. Be3 Nd7 13. Qc2 Rc8 14. Rfd1 O-O 15. a3 {½-½ (83) Matejka,P (1597)-Kutny,M (1961) Slovakia 2019}) 9... Be7 {[%emt 0:20:22]} (9... Nxc3 $11 10. bxc3 h6) 10. Qg4 $14 {[%emt 0:18:07]} Qd7 {[%emt 0:31:34] White stays focused until the end.} (10... c5 $14) 11. O-O $16 {[%emt 0:05:49]} Nxc3 {[%emt 0:11:01]} 12. bxc3 {[%emt 0:02:12][%cal Rg5e6]} Bd5 {[%emt 0:00:52]} (12... Bxg5 $16 13. Bxg5 Nc6) 13. Ne4 {[%emt 0:11:03]} Kf8 {[%emt 0:01:37]} (13... Nc6 $16) 14. Ng3 $1 $18 {[%emt 0:08:41]} h6 $2 {[%emt 0:09:45]} (14... c6 15. Nh5 (15. Bxd5 Qxd5 16. Nh5 g6 $16) 15... g6) 15. Nh5 {[%emt 0:06:53]} (15. Bxd5 exd5 16. Nf5 Rg8 17. Nxh6 Qxg4 18. Nxg4 Nd7 $16) 15... g6 {[%emt 0:00:18]} 16. Nf4 {[%emt 0:00:09] aiming for Bxd5.} h5 {[%emt 0:01:28]} 17. Qg3 {[%emt 0:04:01] Bxd5 is the strong threat.} Bxb3 {[%emt 0:12:56]} 18. axb3 {[%emt 0:01:29]} Nc6 {[%emt 0:00:53] [#]} 19. Re1 {[%emt 0:14:02]} (19. Nxg6+ $142 $1 {[%mdl 512]} fxg6 20. Qxg6) 19... g5 {[%emt 0:01:22] [#]} 20. Nh3 {[%emt 0:00:19]} b4 {[%emt 0:00:49]} 21. Bxg5 {[%emt 0:01:58][%cal Od4d5] Hoping for d5!} bxc3 {[%emt 0:00:16]} 22. Bxe7+ {[%emt 0:01:37]} Kxe7 {[%emt 0:00:34]} (22... Nxe7 {is a better defense.} 23. Qxc3 Qc6) 23. Qxc3 {[%emt 0:00:17]} (23. Qg7 Rhg8 24. Qf6+ Ke8 $16) 23... Nxd4 {[%emt 0:00:23]} 24. Ng5 {[%emt 0:00:25]} Rad8 {[%emt 0:01:02]} 25. Qc5+ {[%emt 0:00:52]} (25. Rxa6 Kf8 26. Ra7 Rc8) 25... Ke8 {[%emt 0:00:06]} 26. Ne4 {[%emt 0:00:28][%cal Re4f6]} (26. Rxa6 Qe7 27. Qc1 Rg8 $18) 26... Qe7 {[%emt 0:00:06] Threatens to win with ...Qxc5.} 27. Qc4 {[%emt 0:01:23]} ({Weaker is} 27. Rxa6 Qxc5 28. Nxc5 Ke7 $16) 27... Kf8 {[%emt 0:00:19]} 28. Rad1 {[%emt 0:03:01]} Nb5 {[%emt 0:00:12]} (28... Nf5 29. Qxa6 c5) 29. Nf6 {[%emt 0:00:49] White is clearly winning.} (29. Rxd8+ Qxd8 30. Qc1 Qd5 $18) 29... Rh6 {[%emt 0:00:45]} 30. Qf4 {[%emt 0:01:38][%cal Rf4h6]} ({Not} 30. Rxd8+ Qxd8 31. Qc1 Rxf6 $18) 30... Rg6 {[%emt 0:00:35]} (30... Rh8 $142 31. Qc4 c6 32. Qxc6 Kg7) 31. Qh4 {[%emt 0:03:41]} Rh6 {[%emt 0:01:27]} 32. Qg5 {[%emt 0:00:49][%cal Rg5h6]} Rh8 {[%emt 0:00:09] [#]} 33. Nh7+ $1 {[%emt 0:00:15][%mdl 512]} Ke8 {[%emt 0:00:06]} 34. Qg7 {[%emt 0:00:21]} Rxh7 {[%emt 0:00:02]} 35. Qg8+ {[%emt 0:00:08][%mdl 64] Skewer.  Weighted Error Value: White=0.19 (very precise) /Black=0.42} 1-0

[Event "58th Akiba Rubinstein A 2022"]
[Site "Polanica-Zdroj"]
[Date "2022.08.16"]
[Round "4.2"]
[White "Paprocki, Antoni"]
[Black "Koziorowicz, Michal"]
[Result "0-1"]
[ECO "A40"]
[WhiteElo "1981"]
[BlackElo "2231"]
[Annotator "NA RC"]
[PlyCount "90"]
[EventDate "2022.08.13"]
[EventCountry "POL"]
[SourceTitle "playchess.com"]
[Source "ChessBase"]
[SourceQuality "1"]
[TimeControl "40/5400+30:1800+30"]

1. d4 {[%emt 0:00:07]} Nf6 {[%emt 0:00:59]} 2. c4 {[%emt 0:00:10]} e6 {[%emt 0:00:28]} 3. g3 {[%emt 0:00:28]} c5 {[%emt 0:00:51]} 4. Nf3 {[%emt 0:01:02]} d5 {[%emt 0:05:20]} 5. cxd5 {[%emt 0:04:57]} exd5 {[%emt 0:01:33]} 6. Bg2 $14 {[%emt 0:00:32]} Nc6 {[%emt 0:01:31]} 7. O-O {[%emt 0:00:18]} Bg4 {[%emt 0:11:33]} 8. Ne5 {[%emt 0:07:05]} (8. Bg5 $14) 8... Be6 {[%emt 0:01:39]} 9. Nxc6 {[%emt 0:07:00]} bxc6 {[%emt 0:00:10]} 10. dxc5 {[%emt 0:02:40]} Bxc5 {[%emt 0:08:02]} 11. Qc2 {[%emt 0:00:31]} Nd7 {[%emt 0:00:09]} 12. Nc3 {[%emt 0:19:48]} Rc8 {[%emt 0:02:53]} 13. Bf4 {[%emt 0:07:53]} O-O {[%emt 0:03:24]} 14. Rfd1 {[%emt 0:02:23]} Qa5 {[%emt 0:06:29]} 15. e4 {[%emt 0:07:26]} d4 {[%emt 0:13:02]} 16. Na4 {[%emt 0:02:42]} Bb6 {[%emt 0:02:06]} 17. Bd6 {[%emt 0:02:49]} Rfd8 {[%emt 0:02:41]} 18. b4 {[%emt 0:00:13]} Qa6 {[%emt 0:06:54]} 19. Bf1 {[%emt 0:01:14]} Qb7 {[%emt 0:00:09]} 20. Nc5 {[%emt 0:00:36]} Bxc5 {[%emt 0:03:00]} 21. bxc5 {[%emt 0:00:11]} Qb4 {[%emt 0:00:19]} 22. Ba6 {[%emt 0:03:09]} d3 {[%emt 0:06:22]} 23. Rxd3 {[%emt 0:04:31]} Qxe4 {[%emt 0:00:16]} 24. Rc3 {[%emt 0:03:13]} Qg4 {[%emt 0:01:09]} 25. Bxc8 {[%emt 0:03:37]} Rxc8 {[%emt 0:00:02]} 26. f3 {[%emt 0:05:47]} Qh5 {[%emt 0:01:54]} 27. Qe4 {[%emt 0:02:13]} Nf6 {[%emt 0:00:36]} 28. Qe5 {[%emt 0:01:18]} Qg6 {[%emt 0:00:55]} 29. Rac1 {[%emt 0:05:42]} Re8 {[%emt 0:02:01]} 30. Re3 {[%emt 0:00:52]} h5 {[%emt 0:01:25]} 31. Qd4 {[%emt 0:00:44]} Nd5 {[%emt 0:01:50]} 32. Ra3 {[%emt 0:00:55]} Bh3 {[%emt 0:02:28]} 33. Qd2 {[%emt 0:02:06]} Qf6 {[%emt 0:01:22]} 34. Rxa7 {[%emt 0:01:48]} Re3 {[%emt 0:01:23]} 35. Bf4 {[%emt 0:01:22]} Rxf3 {[%emt 0:00:18]} 36. Ra8+ {[%emt 0:00:25]} Kh7 {[%emt 0:00:06]} 37. Qc2+ {[%emt 0:00:36]} g6 {[%emt 0:01:33]} 38. Qe2 {[%emt 0:00:35]} Qd4+ {[%emt 0:00:15]} 39. Kh1 {[%emt 0:00:05]} Nxf4 {[%emt 0:00:06]} 40. gxf4 {[%emt 0:00:00]} Rf2 {[%emt 0:00:00]} 41. Qe5 {[%emt 0:02:35]} Bg2+ {[%emt 0:01:42]} 42. Kg1 {[%emt 0:00:07]} Rf1+ {[%emt 0:00:03]} 43. Kxg2 {[%emt 0:00:12]} Qf2+ {[%emt 0:00:03]} 44. Kh3 {[%emt 0:00:05]} Qf3+ {[%emt 0:00:04]} 45. Kh4 {[%emt 0:00:04]} Qg4# {[%emt 0:00:02]} 0-1

[Event "58th Akiba Rubinstein A 2022"]
[Site "Polanica-Zdroj"]
[Date "2022.08.16"]
[Round "4.3"]
[White "Skurniak, Szymon"]
[Black "Siekanska, Maria"]
[Result "0-1"]
[ECO "B91"]
[WhiteElo "2051"]
[BlackElo "1964"]
[Annotator "NA RC"]
[PlyCount "120"]
[EventDate "2022.08.13"]
[EventCountry "POL"]
[SourceTitle "playchess.com"]
[Source "ChessBase"]
[SourceQuality "1"]
[TimeControl "40/5400+30:1800+30"]

1. e4 {[%emt 0:00:07]} c5 {[%emt 0:00:04]} 2. Nf3 {[%emt 0:00:07]} d6 {[%emt 0:00:08]} 3. d4 {[%emt 0:00:06]} cxd4 {[%emt 0:00:05]} 4. Nxd4 {[%emt 0:00:04]} Nf6 {[%emt 0:00:08]} 5. Nc3 {[%emt 0:00:05]} a6 {[%emt 0:00:06]} 6. g3 {[%emt 0:00:46]} Nc6 {[%emt 0:05:40]} 7. Bg2 {[%emt 0:05:08]} Bd7 {[%emt 0:02:45]} 8. Nde2 e6 {[%emt 0:03:47]} 9. a4 {[%emt 0:03:20]} Be7 {[%emt 0:01:48]} 10. O-O {[%emt 0:00:11]} O-O {[%emt 0:01:37]} 11. h3 {[%emt 0:05:47]} Rb8 {[%emt 0:09:45]} 12. g4 {[%emt 0:13:23]} Bc8 {[%emt 0:03:58]} 13. Ng3 {[%emt 0:05:15]} b5 {[%emt 0:03:53]} 14. axb5 {[%emt 0:00:54]} axb5 {[%emt 0:00:08]} 15. g5 {[%emt 0:12:26]} Nd7 {[%emt 0:00:12]} 16. f4 {[%emt 0:08:16]} b4 {[%emt 0:09:55]} 17. Nce2 {[%emt 0:06:53]} e5 {[%emt 0:07:26]} 18. Nf5 {[%emt 0:01:30]} exf4 {[%emt 0:01:41]} 19. Nxe7+ {[%emt 0:00:20]} Qxe7 {[%emt 0:00:57]} 20. Nxf4 {[%emt 0:00:35]} Nde5 {[%emt 0:06:10]} 21. Nd5 {[%emt 0:00:43]} Qb7 {[%emt 0:02:51]} 22. Be3 {[%emt 0:07:21]} Be6 {[%emt 0:01:16]} 23. b3 {[%emt 0:01:20]} Ra8 {[%emt 0:05:17]} 24. Qd2 {[%emt 0:05:13]} Rxa1 {[%emt 0:04:37]} 25. Rxa1 {[%emt 0:00:01]} Bxh3 {[%emt 0:00:50]} 26. Qf2 {[%emt 0:05:57]} Bxg2 {[%emt 0:01:41]} 27. Qxg2 {[%emt 0:02:21]} Ra8 {[%emt 0:01:11]} 28. Rf1 {[%emt 0:01:01]} Ne7 {[%emt 0:03:47]} 29. Nf4 {[%emt 0:05:09]} Ra2 {[%emt 0:01:51]} 30. Rd1 {[%emt 0:01:50]} Qc6 {[%emt 0:02:39]} 31. Rd2 {[%emt 0:01:07]} N7g6 {[%emt 0:01:07]} 32. Nxg6 {[%emt 0:00:37]} Nxg6 {[%emt 0:00:09]} 33. Bd4 {[%emt 0:02:25]} Nf4 {[%emt 0:05:05]} 34. Qg4 {[%emt 0:01:45]} Ne6 {[%emt 0:00:19]} 35. e5 {[%emt 0:00:33]} dxe5 {[%emt 0:01:24]} 36. Be3 {[%emt 0:01:26]} Ra1+ {[%emt 0:01:58]} 37. Kf2 {[%emt 0:00:06]} Qb5 {[%emt 0:00:23]} 38. Qc4 {[%emt 0:02:55]} Qxc4 {[%emt 0:01:31]} 39. bxc4 {[%emt 0:00:02]} Kf8 {[%emt 0:00:14]} 40. c5 {[%emt 0:00:00]} Ke7 {[%emt 0:00:00]} 41. Kf3 {[%emt 0:03:29]} Ra5 {[%emt 0:05:44]} 42. Rh2 {[%emt 0:02:07]} Ra2 {[%emt 0:01:37]} 43. Rd2 {[%emt 0:01:14]} b3 {[%emt 0:04:21]} 44. cxb3 {[%emt 0:01:03]} Rxd2 {[%emt 0:00:05]} 45. Bxd2 {[%emt 0:00:05]} Nxc5 {[%emt 0:00:08]} 46. b4 {[%emt 0:00:43]} Nb7 {[%emt 0:00:47]} 47. b5 {[%emt 0:05:47]} Ke6 {[%emt 0:00:12]} 48. Bb4 {[%emt 0:01:18]} f5 {[%emt 0:01:34]} 49. gxf6 {[%emt 0:00:25]} gxf6 {[%emt 0:00:49]} 50. Kg4 {[%emt 0:02:03]} f5+ {[%emt 0:02:33]} 51. Kg5 {[%emt 0:00:07]} f4 {[%emt 0:00:40]} 52. Bd2 {[%emt 0:00:39]} Kd5 {[%emt 0:01:02]} 53. b6 {[%emt 0:02:56]} Ke4 {[%emt 0:02:32]} 54. Kg4 {[%emt 0:00:24]} h6 {[%emt 0:00:55]} 55. Bc1 {[%emt 0:00:10]} h5+ {[%emt 0:00:30]} 56. Kh3 {[%emt 0:00:09]} Kf3 {[%emt 0:01:07]} 57. Bb2 {[%emt 0:00:24]} e4 {[%emt 0:00:13]} 58. Kh4 {[%emt 0:01:23]} Ke2 {[%emt 0:01:43]} 59. Bd4 {[%emt 0:01:31]} f3 {[%emt 0:00:32]} 60. Kg3 {[%emt 0:00:03]} e3 {[%emt 0:00:21]} 0-1

[Event "58th Akiba Rubinstein A 2022"]
[Site "Polanica-Zdroj"]
[Date "2022.08.16"]
[Round "4.4"]
[White "Kowalczyk, Rafal"]
[Black "Kasprzak, Lukasz"]
[Result "1-0"]
[ECO "B22"]
[WhiteElo "2239"]
[BlackElo "1938"]
[Annotator "TA"]
[PlyCount "111"]
[EventDate "2022.08.13"]
[EventCountry "POL"]
[SourceTitle "playchess.com"]
[Source "ChessBase"]
[SourceQuality "1"]
[TimeControl "40/5400+30:1800+30"]

{[%evp 9,111,12,3,-14,-6,-11,-9,-11,0,0,-8,0,-11,-16,-22,-29,-31,-23,-6,-57,-25,-32,-40,-39,-42,-47,-27,-58,-44,-46,-39,-50,-45,-31,-42,-33,37,31,71,66,52,62,41,29,104,113,104,105,139,149,141,145,211,195,263,246,257,188,296,293,285,284,285,301,369,333,359,349,367,350,355,355,351,347,345,337,413,413,549,533,814,814,804,802,773,762,1541,1442,1402,1274,1283,900,29977,29978,29978,29979,29978,29980,29981,29982,29982,29983,29983,29984]} 1. e4 {[%emt 0:00:30][%cal Be2e4,Be4e5][%mdl 32]} c5 {[%emt 0:00:22]} 2. c3 {[%emt 0:02:12]} Nf6 {[%emt 0:00:52]} 3. e5 {[%emt 0:00:11]} Nd5 {[%emt 0:00:04]} 4. Nf3 {[%emt 0:00:11]} d6 {[%emt 0:01:11]} 5. Bc4 {[%emt 0:00:49]} Nb6 {[%emt 0:01:04]} 6. Bb3 {[%emt 0:00:11] B22: Sicilian: 2 c3.} c4 {[%emt 0:05:33]} 7. Bc2 {[%emt 0:01:14]} dxe5 {[%emt 0:00:32]} 8. Nxe5 {[%emt 0:01:01] The position is equal.} Qd5 $1 {[%emt 0:00:46][%csl LRe5,LRg2]} 9. Qe2 {[%emt 0:02:32]} f6 {[%emt 0:00:20]} 10. Nf3 {[%emt 0:00:42]} Qe6 {[%emt 0:01:17] [#]} 11. Nd4 $146 {[%emt 0:16:10]} ({Predecessor:} 11. d4 cxd3 12. Bxd3 Qxe2+ 13. Bxe2 e5 14. Be3 Be6 15. Bxb6 axb6 16. Nbd2 Nc6 17. a3 {½-½ (33) Zhigalko,S (2571)-Sethuraman,S (2638) Moscow 2019}) 11... Qxe2+ {[%emt 0:03:56]} 12. Nxe2 {[%emt 0:00:10]} e5 $36 {[%emt 0:11:36][%mdl 2048] Black has the initiative.} 13. f4 {[%emt 0:11:07]} Nc6 {[%emt 0:10:55]} 14. f5 {[%emt 0:03:01]} (14. b3 $11) 14... Bc5 {[%emt 0:14:02]} 15. b4 {[%emt 0:09:23]} Bd6 {[%emt 0:02:27]} 16. O-O {[%emt 0:03:06]} Ne7 {[%emt 0:04:34]} 17. a4 {[%emt 0:05:48]} a5 {[%emt 0:01:12]} 18. b5 {[%emt 0:00:08]} O-O {[%emt 0:01:50]} (18... g6 {looks sharper.} 19. g4 gxf5 20. gxf5 Rg8+) 19. g4 {[%emt 0:02:22]} Bd7 {[%emt 0:06:55]} 20. Ng3 {[%emt 0:00:23][%cal Be2g3,Bg3e4,Be4d6,Bd6b7,Bb7a5,Ba5c6][%mdl 32]} Ned5 {[%emt 0:04:26]} 21. Ne4 {[%emt 0:03:59]} Be7 {[%emt 0:00:13]} 22. Ba3 {[%emt 0:00:12]} Bxa3 {[%emt 0:00:40]} ({Black should play} 22... Kf7 $15) 23. Nxa3 $14 {[%emt 0:00:09]} Rac8 {[%emt 0:05:37]} 24. Nd6 {[%emt 0:02:42][%csl LRb7,LRc8]} Rc7 {[%emt 0:00:07]} 25. Be4 {[%emt 0:00:06][%cal Oa3c4] Hoping for Naxc4!} Nf4 {[%emt 0:08:47]} 26. Nxb7 {[%emt 0:12:16]} (26. Bxb7 Rd8 $11) 26... Nxa4 {[%emt 0:03:09]} (26... Ra8 $1 $11 {remains equal.}) 27. Nxa5 $16 {[%emt 0:00:56] Black is on the road to losing.} Nb6 {[%emt 0:00:44]} 28. Nc6 {[%emt 0:05:01]} Nh3+ {[%emt 0:02:42]} 29. Kh1 Ng5 {[%emt 0:00:07]} 30. Bg2 {[%emt 0:03:44] White is more active.} e4 {[%emt 0:01:41]} (30... Bxc6 $16 {keeps fighting.} 31. bxc6 e4) 31. Nd4 $18 {[%emt 0:00:52]} Ra8 {[%emt 0:01:23]} (31... Re8 $142 32. Rfe1 Nf7 33. Bxe4 (33. Rxe4 Rxe4 34. Bxe4 Ra7 $18) 33... Ra7) 32. Nac2 {[%emt 0:04:34]} Rca7 {[%emt 0:00:13]} 33. h4 {[%emt 0:04:00]} Nf3 {[%emt 0:02:47]} (33... Rxa1 $142 34. Rxa1 (34. Nxa1 Nf7 $18) 34... Rxa1+ 35. Nxa1 Nf7 36. Bxe4 Nd6) 34. Bxf3 {[%emt 0:00:14]} (34. Nxf3 Rxa1 35. Rxa1 (35. Nxa1 exf3 36. Bxf3 Ra2 $14) 35... Rxa1+ 36. Nxa1 exf3 $16) 34... exf3 {[%emt 0:00:12]} (34... Rxa1 $2 35. Rxa1 (35. Nxa1 exf3 36. Nac2 Nc8 $18) 35... Rxa1+ 36. Nxa1 $18) 35. Kh2 {[%emt 0:03:06][%cal Bh1h2,Bh2g3,Bg3f2][%mdl 32]} ({But not} 35. Rxa7 $6 Rxa7 36. Kg1 (36. Rxf3 Nc8 $18) 36... Ra2 $18) 35... Ra2 {[%emt 0:00:53]} (35... Rxa1 $2 36. Rxa1 Rxa1 37. Nxa1 $18) 36. Kg3 {[%emt 0:00:17]} (36. Rxa2 Rxa2 37. Ra1 (37. Rxf3 Rb2 $16) 37... f2 $18) 36... Kf7 {[%emt 0:02:13]} 37. Rxa2 {[%emt 0:04:13]} Rxa2 38. Ra1 {[%emt 0:00:12]} ({Don't play} 38. Kxf3 Ke7 39. Rd1 Kd6 $18) ({Less strong is} 38. Rxf3 Bxb5 39. Nb4 (39. Nxb5 Rxc2 40. Rf2 Rb2 $16) 39... Ra5 $16) 38... Rxa1 {[%emt 0:01:14]} 39. Nxa1 {[%emt 0:00:07][%mdl 4096] Endgame KBN-KNN} f2 {[%emt 0:01:10]} 40. Kxf2 {[%emt 0:00:00]} Ke7 {[%emt 0:00:00]} 41. Nac2 {[%emt 0:01:05]} Kd6 {[%emt 0:02:56]} 42. Nb4 {[%emt 0:01:38]} Kc5 {[%emt 0:06:32]} 43. Nbc6 {[%emt 0:00:35]} Nd5 {[%emt 0:00:53]} 44. Nd8 {[%emt 0:05:13]} g6 {[%emt 0:02:37]} 45. fxg6 {[%emt 0:01:32]} hxg6 {[%emt 0:00:02]} 46. h5 {[%emt 0:00:11]} gxh5 {[%emt 0:01:02]} 47. gxh5 {[%emt 0:00:10][%cal Bg4h5,Bh5h6,Bh6h7][%mdl 32] [#] h6 is the strong threat.} Nf4 {[%emt 0:01:16]} 48. h6 {[%emt 0:00:08]} Ng6 {[%emt 0:01:27]} 49. Ke3 {[%emt 0:02:33]} f5 {[%emt 0:00:29]} 50. N8e6+ {[%emt 0:00:51]} Bxe6 {[%emt 0:01:04]} 51. Nxe6+ {[%emt 0:00:08] White mates.} Kxb5 {[%emt 0:00:05] KN-KN} 52. h7 {[%emt 0:00:37]} Kc6 {[%emt 0:00:10] [#]} 53. Nf8 $1 {[%emt 0:01:35][%mdl 512]} Nh8 {[%emt 0:00:14]} (53... f4+ 54. Ke4) 54. Kf4 {[%emt 0:00:06]} Kd6 {[%emt 0:00:35]} 55. Kxf5 {[%emt 0:00:09]} Ke7 {[%emt 0:00:13]} 56. Ng6+ {[%emt 0:00:11] Weighted Error Value: White=0.08 (flawless) /Black=0.30} 1-0